bitfinex-derivatives/quotes_SOLF0:USTF0_20250709
["timestamp","ask_amount","ask_price","bid_price","bid_amount"]
[1752084776144,7.06396444,154.91,154.83,563.97559966]
[1752084776338,7.01559966,154.89,154.83,556.96]
[1752084776743,7.01559966,154.89,154.83,563.4177]
[1752084776944,0.04337202,154.88,154.81,7.01559966]
[1752084777144,6.4561,154.87,154.83,6.4574]
[1752084777345,2.27917202,154.88,154.81,7.01559966]
[1752084777844,6.4561,154.87,154.84,6.4572]
[1752084778043,6.4561,154.87,154.81,7.01559966]
[1752084778748,2.27917202,154.88,154.81,7.01559966]
[1752084778951,0.04337202,154.88,154.83,7.01559966]
[1752084779249,0.04337202,154.88,154.75,557.4984]
[1752084779250,0.04337202,154.88,154.77,7.01559966]
[1752084779547,7.01559966,154.88,154.8,7.01559966]
[1752084779742,2.269,154.94,154.8,7.01559966]
[1752084779938,0.04873761,154.83,154.8,7.01559966]
[1752084780150,7.01559966,154.93,154.82,7.01559966]
[1752084780339,6.4535,154.93,154.89,7.01559966]
[1752084780546,2.269,154.94,154.85,267.22321716]
[1752084780747,2.269,154.94,154.85,267.18]
[1752084781045,6.4542,154.92,154.88,13.47089966]
[1752084781248,2.269,154.94,154.88,7.06296023]
[1752084781446,2.269,154.94,154.9,7.01559966]
[1752084781651,2.269,154.94,154.88,0.04736057]
[1752084781944,2.269,154.94,154.9,7.01559966]
[1752084782149,7.01559966,155.0,154.9,7.01559966]
[1752084782351,9.27019966,154.98,154.9,7.01559966]
[1752084782654,6.4538,154.93,154.89,7.01559966]
[1752084782852,6.4538,154.93,154.92,0.04505724]
[1752084783448,6.4976043,154.94,154.92,0.04505724]
[1752084783653,0.0444043,154.94,154.92,0.04505724]
[1752084784048,0.0444043,154.94,154.92,6.49895724]
[1752084784342,0.0444043,154.94,154.92,0.04505724]
[1752084785146,6.4535,154.93,154.92,0.04505724]
[1752084785342,0.0444043,154.94,154.88,62.0]
[1752084785548,0.0444043,154.94,154.88,69.01559966]
[1752084785755,6.4545,154.91,154.88,69.01559966]
[1752084786348,0.0444043,154.94,154.88,7.01559966]
[1752084787047,0.0444043,154.94,154.87,7.01559966]
[1752084787245,0.0444043,154.94,154.85,7.01559966]
[1752084787449,7.01559966,154.95,154.85,7.01559966]
[1752084787653,0.04100719,154.91,154.85,13.47219966]
[1752084788054,6.4561,154.87,154.85,7.01559966]
[1752084788645,6.50264374,154.88,154.85,13.47239966]
[1752084790046,6.50264374,154.88,154.84,6.4572]
[1752084790250,6.50264374,154.88,154.84,13.47279966]
[1752084790452,6.4561,154.87,154.82,69.01559966]
[1752084790652,6.4561,154.87,154.83,6.4574]
[1752084791060,0.04704374,154.88,154.82,69.01559966]
[1752084791061,6.4566,154.86,154.82,62.0]
[1752084791354,6.4566,154.86,154.82,69.01559966]
[1752084791756,6.4561,154.87,154.82,69.01559966]
[1752084792152,6.4561,154.87,154.83,6.4573]
[1752084792551,6.4565,154.86,154.83,6.4573]
[1752084792755,0.04704374,154.88,154.83,6.4573]
[1752084792947,6.4562,154.87,154.83,6.4573]
[1752084793951,6.4562,154.87,154.84,6.4572]
[1752084794653,6.4562,154.87,154.83,6.4575]
[1752084795356,6.4562,154.87,154.84,6.4572]
[1752084796060,6.4562,154.87,154.84,6.50261732]
[1752084797260,0.04704374,154.88,154.84,0.04541732]
[1752084797759,6.50284374,154.88,154.84,0.04541732]
[1752084798160,6.50284374,154.88,154.84,6.50241732]
[1752084798960,6.50284374,154.88,154.85,6.4568]
[1752084800150,6.50284374,154.88,154.84,0.04541732]
[1752084800151,0.04704374,154.88,154.84,0.04541732]
[1752084800358,8.97721049,154.97,154.87,7.01559966]
[1752084800557,15.99281015,154.93,154.82,62.0]
[1752084800762,7.84306015,154.92,154.84,6.457]
[1752084801062,7.84306015,154.91,154.83,7.01559966]
[1752084801254,6.4562,154.87,154.83,6.4574]
[1752084801456,6.4562,154.87,154.85,0.04780975]
[1752084801959,6.4564,154.86,154.85,0.04780975]
[1752084802256,14.31640017,154.86,154.85,0.04780975]
[1752084803456,7.86000017,154.86,154.72,13.1046]
[1752084803658,14.8791233,154.85,154.78,6.4595]
[1752084803858,7.86352364,154.84,154.78,6.4595]
[1752084804060,6.4588,154.81,154.78,6.4595]
[1752084804564,2.1256,154.86,154.76,7.01559966]
[1752084804759,0.0435766,154.81,154.76,7.01559966]
[1752084805165,0.0435766,154.81,154.77,62.0]
[1752084805559,0.0435766,154.81,154.79,6.4591]
[1752084806068,0.0435766,154.81,154.77,69.01559966]
[1752084806662,0.0435766,154.81,154.78,6.4597]
[1752084807261,0.0435766,154.81,154.77,69.01559966]
[1752084807462,7.66e-05,154.81,154.79,7.01559966]
[1752084808056,7.66e-05,154.81,154.8,6.4589]
[1752084808254,2.2592,154.89,154.8,7.01559966]
[1752084808463,7.84997733,154.88,154.79,0.1803]
[1752084808660,6.4559,154.88,154.84,6.4572]
[1752084809060,6.4559,154.88,154.82,7.01559966]
[1752084809366,8.97721049,154.95,154.86,7.01559966]
[1752084809562,0.04435998,154.87,154.86,7.01559966]
[1752084809764,7.83341388,154.93,154.88,6.4556]
[1752084809963,7.83341388,154.92,154.88,6.4556]
[1752084810264,18.15621015,154.96,154.89,6.4552]
[1752084810465,7.83663216,154.95,154.88,0.04236531]
[1752084810666,7.83663216,154.94,154.88,0.04236531]
[1752084810970,6.4539,154.92,154.88,0.04236531]
[1752084811463,6.4546,154.91,154.88,0.04236531]
[1752084811665,7.01559966,154.94,154.88,0.04236531]
[1752084811866,7.8399018,154.93,154.88,0.04236531]
[1752084812068,7.8399018,154.92,154.88,0.04236531]
[1752084812256,7.84226674,154.91,154.88,0.04236531]
[1752084812456,6.455,154.9,154.88,0.04236531]
[1752084814269,6.4552,154.89,154.88,0.04236531]
[1752084814862,6.455,154.9,154.88,0.04236531]
[1752084815062,8.97721049,154.94,154.9,6.4544]
[1752084815262,7.91541871,154.93,154.89,7.01559966]
[1752084815563,2.1634,154.96,154.92,6.4538]
[1752084815862,7.91341314,154.95,154.92,6.4538]
[1752084816067,2.1634,154.96,154.92,0.04553962]
[1752084816263,7.91399282,154.95,154.92,0.04553962]
[1752084816567,2.1634,154.96,154.92,0.04553962]
[1752084816770,7.91388008,154.95,154.92,0.04553962]
[1752084816963,2.1634,154.96,154.92,0.04553962]
[1752084817268,7.9157322,154.95,154.92,0.04553962]
[1752084817466,2.1634,154.96,154.92,0.04553962]
[1752084817673,7.91525881,154.95,154.92,0.04553962]
[1752084817864,8.66007072,154.96,154.92,6.49923962]
[1752084818067,7.91525881,154.95,154.92,6.49923962]
[1752084818266,6.4527,154.95,154.92,6.49923962]
[1752084818467,6.4527,154.95,154.92,0.04553962]
[1752084820168,6.4535,154.93,154.92,0.04553962]
[1752084820368,7.01559966,154.94,154.84,7.01559966]
[1752084820564,7.01559966,154.92,154.82,7.01559966]
[1752084820968,7.91930336,154.91,154.82,7.01559966]
[1752084821267,6.4552,154.89,154.85,6.4568]
[1752084821469,0.04213653,154.88,154.85,6.4568]
[1752084821670,0.04213653,154.88,154.82,7.01559966]
[1752084821872,6.49813653,154.88,154.82,7.01559966]
[1752084822174,0.04213653,154.88,154.8,7.01559966]
[1752084822572,4.5756,154.89,154.82,0.04545667]
[1752084822765,6.49925446,154.86,154.82,6.50335667]
[1752084822965,6.49925446,154.86,154.82,0.04545667]
[1752084823368,0.04255446,154.86,154.83,6.4576]
[1752084823770,0.04255446,154.86,154.82,0.04545667]
[1752084823976,0.04255446,154.86,154.84,6.457]
[1752084824166,0.04255446,154.86,154.82,0.04545667]
[1752084824371,0.04255446,154.86,154.85,6.4568]
[1752084829777,0.04255446,154.86,154.85,13.47239966]
[1752084829982,8.97721049,154.94,154.85,7.01559966]
[1752084830179,7.90517367,154.93,154.85,7.01559966]
[1752084830379,6.4546,154.91,154.87,6.4558]
[1752084830574,7.90517367,154.9,154.87,6.4558]
[1752084830778,6.4546,154.91,154.86,7.01559966]
[1752084831078,6.4539,154.92,154.89,6.4551]
[1752084831283,9.34399966,154.96,154.89,6.4551]
[1752084831482,6.454,154.92,154.88,6.4554]
[1752084831783,6.454,154.92,154.91,0.04538798]
[1752084831982,7.90636374,154.92,154.91,0.04538798]
[1752084832380,2.3284,154.96,154.91,0.04538798]
[1752084832682,6.4536,154.93,154.91,0.04538798]
[1752084832887,2.3284,154.96,154.91,0.04538798]
[1752084833184,23.94914802,154.95,154.87,7.01559966]
[1752084833380,23.94914802,154.95,154.85,7.01559966]
[1752084833381,7.01559966,154.93,154.85,7.01559966]
[1752084833580,7.90724045,154.92,154.85,7.01559966]
[1752084833783,7.90724045,154.91,154.76,17.84511321]
[1752084833983,7.90724045,154.9,154.84,7.01559966]
[1752084834180,8.97721049,154.93,154.84,7.01559966]
[1752084834484,6.4551,154.9,154.84,7.01559966]
[1752084834683,0.04345883,154.9,154.86,7.01559966]
[1752084834888,0.04345883,154.9,154.89,6.4552]
[1752084835186,0.04523477,154.91,154.89,6.4552]
[1752084835380,7.9254249,154.9,154.89,6.4552]
[1752084835784,0.04523477,154.91,154.88,13.47099966]
[1752084835983,0.04523477,154.91,154.88,7.01559966]
[1752084836185,0.04523477,154.91,154.88,6.4553]
[1752084836681,0.04523477,154.91,154.9,6.4548]
[1752084836898,0.04523477,154.91,154.81,62.0]
[1752084837089,0.04523477,154.91,154.87,7.01559966]
[1752084837387,0.04272933,154.91,154.88,6.4553]
[1752084837582,0.04272933,154.91,154.87,7.01559966]
[1752084837787,0.04272933,154.91,154.88,6.4555]
[1752084838184,0.04272933,154.91,154.87,7.01559966]
[1752084838588,0.04272933,154.91,154.89,7.01559966]
[1752084839794,0.04272933,154.91,154.9,6.4548]
[1752084839993,0.04272933,154.91,154.89,7.01559966]
[1752084840388,0.04272933,154.91,154.9,6.4548]
[1752084840993,6.49712933,154.91,154.87,6.4559]
[1752084842394,6.4549,154.9,154.86,6.4563]
[1752084842989,6.49722933,154.91,154.87,6.456]
[1752084843290,0.04272933,154.91,154.87,7.01559966]
[1752084843492,0.04272933,154.91,154.89,7.01559966]
[1752084843892,0.04272933,154.91,154.9,6.4548]
[1752084844094,8.21743984,154.95,154.89,14.03119932]
[1752084844298,11.29641049,155.0,154.91,7.01559966]
[1752084844596,6.4533,154.94,154.91,13.46969966]
[1752084845093,6.4536,154.93,154.87,259.48]
[1752084845286,6.4536,154.93,154.91,0.04595652]
[1752084845492,6.4532,154.94,154.91,0.04595652]
[1752084845993,15.99281015,154.97,154.91,0.04595652]
[1752084846189,8.21394803,154.96,154.91,0.04595652]
[1752084846393,8.21394803,154.95,154.87,266.49559966]
[1752084846696,8.21394803,154.94,154.87,7.01559966]
[1752084846896,8.21394803,154.93,154.87,7.01559966]
[1752084847094,8.97721049,154.96,154.87,7.01559966]
[1752084847290,8.21404336,154.95,154.89,6.4549]
[1752084847498,0.04254122,154.93,154.89,6.4549]
[1752084847998,6.49624122,154.93,154.89,6.4549]
[1752084848397,0.04254122,154.93,154.9,7.01559966]
[1752084848794,0.04254122,154.93,154.88,7.01559966]
[1752084849396,0.04254122,154.93,154.91,6.4541]
[1752084851401,0.04254122,154.93,154.89,7.01559966]
[1752084851800,0.04254122,154.93,154.91,6.4543]
[1752084852196,0.04254122,154.93,154.84,62.0]
[1752084852396,0.04254122,154.93,154.91,6.4543]
[1752084852696,0.04254122,154.93,154.91,7.01559966]
[1752084853000,0.04254122,154.93,154.92,6.4539]
[1752084854995,8.97721049,154.99,154.91,7.05838014]
[1752084855197,8.24959834,154.98,154.96,7.01559966]
[1752084855396,8.24959834,154.98,154.93,7.01559966]
[1752084855397,6.4517,154.98,154.93,7.01559966]
[1752084855595,8.24723347,154.97,154.93,7.01559966]
[1752084855796,2.3192,155.0,154.93,7.01559966]
[1752084855994,14.69818978,154.99,154.95,6.4524]
[1752084856194,8.24708978,154.98,154.95,6.4524]
[1752084856401,6.4511,154.99,154.95,6.50137327]
[1752084856402,8.24515652,154.97,154.95,6.50137327]
[1752084856598,11.29641049,155.0,154.95,7.06457293]
[1752084856904,8.29117029,154.99,154.98,7.01559966]
[1752084857101,8.29117029,154.99,154.95,0.04897327]
[1752084857397,8.24488117,154.98,154.97,7.01559966]
[1752084857797,0.04628912,154.99,154.97,7.01559966]
[1752084859704,0.04628912,154.99,154.95,0.04897327]
[1752084859901,0.04628912,154.99,154.97,7.01559966]
[1752084860297,0.04628912,154.99,154.96,6.4522]
[1752084860499,0.04628912,154.99,154.97,7.01559966]
[1752084860999,0.04628912,154.99,154.98,6.4514]
[1752084861199,0.04628912,154.99,154.95,0.04897327]
[1752084861604,6.4522,154.97,154.95,0.04897327]
[1752084861799,2.22158912,154.99,154.95,0.04897327]
[1752084862009,7.01559966,154.98,154.82,0.2653]
[1752084862202,6.453,154.95,154.89,7.01559966]
[1752084863007,6.453,154.95,154.82,258.5853]
[1752084863307,6.49486847,154.94,154.9,0.04285134]
[1752084863499,6.4531,154.94,154.89,7.01559966]
[1752084863700,0.04919888,154.94,154.9,6.4544]
[1752084863906,0.04919888,154.94,154.88,7.01559966]
[1752084864296,7.01559966,154.97,154.88,7.01559966]
[1752084864496,0.04473032,154.93,154.9,6.4548]
[1752084865108,0.04473032,154.93,154.91,6.4543]
[1752084865416,0.04473032,154.93,154.88,7.01559966]
[1752084865609,0.04473032,154.93,154.9,6.4546]
[1752084866608,0.04473032,154.93,154.91,6.4543]
[1752084867011,0.04473032,154.93,154.88,7.01559966]
[1752084867306,0.04473032,154.93,154.9,6.4546]
[1752084868105,6.49823032,154.93,154.9,6.4546]
[1752084868509,0.04473032,154.93,154.88,7.01559966]
[1752084869209,6.49823032,154.93,154.9,6.4545]
[1752084869610,0.04473032,154.93,154.9,6.4545]
[1752084870311,6.49853032,154.93,154.88,7.01559966]
[1752084870707,6.49843032,154.93,154.9,6.4547]
[1752084871108,0.04473032,154.93,154.83,62.0]
[1752084871308,0.04473032,154.93,154.86,7.01559966]
[1752084871505,0.04473032,154.93,154.84,7.01559966]
[1752084871906,6.4553,154.89,154.86,6.4563]
[1752084872509,0.04696021,154.89,154.87,6.4557]
[1752084873216,0.04696021,154.89,154.88,6.4556]
[1752084873714,0.04696021,154.89,154.88,13.47119966]
[1752084873911,6.4535,154.94,154.91,6.4542]
[1752084875212,2.225,154.97,154.9,7.01559966]
[1752084875411,7.9540889,154.96,154.89,7.01559966]
[1752084875610,6.4535,154.93,154.9,6.4545]
[1752084875810,6.4535,154.93,154.89,7.01559966]
[1752084877208,6.4535,154.93,154.9,6.4544]
[1752084877412,6.454,154.92,154.88,7.01559966]
[1752084877613,2.225,154.97,154.88,6.4554]
[1752084877808,14.97114267,154.96,154.88,6.4554]
[1752084878014,7.95554301,154.95,154.86,7.01559966]
[1752084878216,7.95554301,154.94,154.86,7.01559966]
[1752084878417,6.4543,154.92,154.83,62.0]
[1752084878716,2.225,154.97,154.89,7.01559966]
[1752084878919,7.95561426,154.96,154.89,7.01559966]
[1752084879118,7.95561426,154.95,154.83,74.9153]
[1752084879318,6.4533,154.94,154.9,6.4545]
[1752084879521,2.225,154.97,154.9,6.4545]
[1752084879719,7.95764025,154.96,154.9,6.4545]
[1752084879910,7.95764025,154.95,154.89,7.01559966]
[1752084880110,2.225,154.97,154.89,7.01559966]
[1752084880314,7.95866296,154.96,154.89,7.01559966]
[1752084880513,6.4533,154.94,154.91,6.4541]
[1752084883923,2.225,154.97,154.89,7.01559966]
[1752084884127,7.93519648,154.96,154.89,7.01559966]
[1752084884322,7.93519648,154.95,154.89,7.01559966]
[1752084884519,6.453,154.95,154.9,7.01559966]
[1752084884819,2.225,154.97,154.89,7.01559966]
[1752084885125,6.4534,154.94,154.91,6.49582991]
[1752084885624,2.225,154.97,154.91,0.04172991]
[1752084885922,7.95302078,154.96,154.91,0.04172991]
[1752084886125,7.95302078,154.95,154.91,0.04172991]
[1752084886320,6.4527,154.95,154.92,6.4536]
[1752084886520,2.225,154.97,154.91,7.05732957]
[1752084886720,135.17660259,155.02,154.95,13.46829966]
[1752084886721,7.95392585,154.96,154.95,13.46829966]
[1752084886921,9.02623042,155.0,154.95,7.01559966]
[1752084887123,7.95283781,154.99,154.97,7.01559966]
[1752084887326,7.95283781,154.99,154.9,0.3158]
[1752084887327,6.4511,154.99,154.95,7.01559966]
[1752084887629,137.45800259,155.02,154.95,7.01559966]
[1752084887828,7.95220399,155.01,154.96,6.452]
[1752084888027,7.95220399,155.0,154.96,6.452]
[1752084888232,7.95220399,154.99,154.96,6.452]
[1752084888431,137.45800259,155.02,154.96,6.452]
[1752084888633,7.95239691,155.01,154.96,6.452]
[1752084888829,7.95239691,155.0,154.96,6.452]
[1752084889024,7.95239691,154.99,154.96,6.452]
[1752084889327,6.4513,154.99,154.96,6.452]
[1752084889834,2.2814,155.02,154.96,7.01559966]
[1752084890128,9.02623042,155.08,155.0,7.01559966]
[1752084890323,19.36977207,155.07,155.0,7.01559966]
[1752084890523,7.99254165,155.06,155.0,7.01559966]
[1752084890835,6.4492,155.04,155.01,6.45]
[1752084893238,6.4492,155.04,154.91,619.36]
[1752084893239,7.98382748,155.03,154.91,619.36]
[1752084893442,7.98382748,155.02,154.96,7.01559966]
[1752084893641,7.98382748,155.01,154.91,619.36]
[1752084893837,9.02623042,155.04,154.95,7.01559966]
[1752084894047,10.28676859,155.03,154.95,7.01559966]
[1752084894340,6.4508,155.0,154.97,6.4516]
[1752084897043,6.4504,155.01,154.95,7.01559966]
[1752084897235,2.3021,155.03,154.95,7.01559966]
[1752084897441,8.02686633,155.02,154.95,7.01559966]
[1752084897751,8.02686633,155.01,154.95,7.01559966]
[1752084897939,8.02686633,155.0,154.95,7.01559966]
[1752084898134,2.3021,155.03,154.95,7.01559966]
[1752084898341,6.4509,155.0,154.97,6.4518]
[1752084898540,2.3021,155.03,154.94,7.01559966]
[1752084898739,8.02693656,155.02,154.94,7.01559966]
[1752084898944,6.4513,154.99,154.94,7.01559966]
[1752084899848,2.3021,155.03,154.96,6.452]
[1752084900050,8.00066226,155.02,154.96,6.452]
[1752084900248,8.00066226,155.01,154.94,7.01559966]
[1752084900445,2.3021,155.03,154.94,7.01559966]
[1752084900644,7.99996822,155.02,154.94,7.01559966]
[1752084900850,7.99996822,155.01,154.94,7.01559966]
[1752084901146,7.99996822,155.0,154.94,7.01559966]
[1752084901347,6.4516,154.98,154.95,6.4524]
[1752084901650,2.3021,155.03,154.94,7.01559966]
[1752084901846,7.99997608,155.02,154.94,7.01559966]
[1752084902150,7.99997608,155.01,154.96,6.4521]
[1752084902349,7.99997608,155.0,154.96,6.4521]
[1752084902648,6.4513,154.99,154.96,6.4521]
[1752084902948,6.4513,154.99,154.97,6.4518]
[1752084903350,4.66094693,155.02,154.91,619.36]
[1752084903551,4.66094693,154.98,154.92,4.66094693]
[1752084903750,4.66094693,154.99,154.92,4.66094693]
[1752084903951,8.00117842,154.98,154.94,6.4529]
[1752084904248,4.66094693,154.99,154.94,6.4529]
[1752084904448,6.4522,154.97,154.94,6.4529]
[1752084904649,4.66094693,154.99,154.92,4.66094693]
[1752084904849,7.98472385,154.98,154.92,4.66094693]
[1752084905050,4.66094693,154.99,154.93,6.4533]
[1752084905249,7.98527723,154.98,154.92,4.66094693]
[1752084905439,6.4525,154.96,154.91,4.66094693]
[1752084905840,4.66094693,154.99,154.91,4.66094693]
[1752084906045,6.4523,154.96,154.91,4.66094693]
[1752084906245,6.4523,154.96,154.94,6.453]
[1752084906450,6.4523,154.96,154.91,4.66094693]
[1752084906645,6.4523,154.96,154.93,6.4533]
[1752084906954,4.66094693,154.97,154.89,4.66094693]
[1752084907148,4.66094693,154.95,154.88,4.66094693]
[1752084907345,6.4543,154.92,154.88,4.66094693]
[1752084907647,2.1313,154.94,154.89,6.4549]
[1752084907851,6.4537,154.93,154.88,4.66094693]
[1752084908354,2.1313,154.94,154.88,4.66094693]
[1752084908947,6.4539,154.93,154.88,4.66094693]
[1752084909251,2.1313,154.94,154.88,4.66094693]
[1752084909448,6.454,154.92,154.85,557.22]
[1752084909653,6.454,154.92,154.88,4.66094693]
[1752084910055,6.4544,154.91,154.88,4.66094693]
[1752084910246,2.1313,154.94,154.88,4.66094693]
[1752084910744,2.1313,154.94,154.88,6.4554]
[1752084910945,2.1313,154.94,154.88,11.11634693]
[1752084911149,6.4543,154.92,154.88,11.11634693]
[1752084911358,2.1313,154.94,154.88,4.66094693]
[1752084911658,2.1986,154.96,154.92,4.66094693]
[1752084911851,8.6511,154.96,154.93,6.4533]
[1752084912156,2.1986,154.96,154.92,4.66094693]
[1752084912349,6.4527,154.95,154.91,11.11494693]
[1752084912551,6.4527,154.95,154.91,4.66094693]
[1752084913460,8.6511,154.96,154.92,6.4537]
[1752084914060,8.6511,154.96,154.92,6.49913024]
[1752084914854,2.1986,154.96,154.92,6.49913024]
[1752084915361,8.6511,154.96,154.92,6.49913024]
[1752084916063,11.33293042,155.0,154.93,4.66094693]
[1752084916360,4.66094693,154.97,154.92,0.04543024]
[1752084916556,6.4534,154.94,154.92,0.04543024]
[1752084916758,4.66094693,154.97,154.92,0.04543024]
[1752084917063,7.95255942,154.96,154.92,0.04543024]
[1752084917272,9.02623042,154.99,154.92,6.49933024]
[1752084917564,12.6145316,154.98,154.92,0.04543024]
[1752084917762,7.95358467,154.97,154.92,0.04543024]
[1752084917962,12.6145316,154.96,154.92,0.04543024]
[1752084918163,6.4534,154.94,154.92,0.04543024]
[1752084918357,4.66094693,154.96,154.92,0.04543024]
[1752084918557,7.95473669,154.95,154.92,0.04543024]
[1752084918755,6.4535,154.93,154.92,0.04543024]
[1752084919064,0.04841821,154.94,154.89,6.455]
[1752084919268,6.4548,154.9,154.85,561.88094693]
[1752084919570,4.66094693,154.92,154.84,4.66094693]
[1752084919768,6.4552,154.89,154.84,4.66094693]
[1752084920064,4.66094693,154.92,154.84,4.66094693]
[1752084920262,0.04958926,154.88,154.84,4.66094693]
[1752084920864,0.04958926,154.88,154.87,6.456]
[1752084922569,0.04958926,154.88,154.86,11.11714693]
[1752084923367,0.04958926,154.88,154.87,6.456]
[1752084923664,0.04958926,154.88,154.86,4.66094693]
[1752084924660,0.04958926,154.88,154.85,4.66094693]
[1752084924868,2.2835,154.93,154.91,6.4543]
[1752084925467,2.2835,154.93,154.82,62.0]
[1752084925468,2.2835,154.93,154.9,6.4544]
[1752084925664,8.7371,154.93,154.9,6.4544]
[1752084926261,2.2835,154.93,154.9,6.4547]
[1752084926464,2.2835,154.93,154.9,0.04859865]
[1752084926867,2.2835,154.93,154.91,6.4543]
[1752084927369,2.2835,154.93,154.9,6.50319865]
[1752084927570,2.2835,154.93,154.9,0.04859865]
[1752084928671,6.4542,154.92,154.9,0.04859865]
[1752084928871,2.2835,154.93,154.9,0.04859865]
[1752084929269,6.4542,154.92,154.9,0.04859865]
[1752084929669,2.2835,154.93,154.9,0.04859865]
[1752084930570,6.4542,154.92,154.9,0.04859865]
[1752084931172,8.7371,154.93,154.9,0.04859865]
[1752084931377,2.2835,154.93,154.9,0.04859865]
[1752084931771,2.2703,154.95,154.91,6.4544]
[1752084932075,0.04881178,154.93,154.91,6.4544]
[1752084932471,0.04881178,154.93,154.9,0.04859865]
[1752084932472,0.04881178,154.93,154.92,6.4539]
[1752084932674,0.04881178,154.93,154.9,0.04859865]
[1752084932873,0.04881178,154.93,154.91,6.4541]
[1752084933073,0.04881178,154.93,154.9,0.04859865]
[1752084933877,6.4547,154.91,154.84,6.99628061]
[1752084934265,6.99628061,154.94,154.84,6.99628061]
[1752084934571,6.4549,154.9,154.84,6.99628061]
[1752084934772,6.4549,154.9,154.86,6.456]
[1752084934968,0.04288058,154.89,154.86,6.456]
[1752084935164,0.04288058,154.89,154.82,62.0]
[1752084935365,0.04288058,154.89,154.81,6.99628061]
[1752084935675,2.2258,154.91,154.83,6.99628061]
[1752084935868,0.04839693,154.87,154.83,7.0424223]
[1752084936675,0.04839693,154.87,154.83,0.04614169]
[1752084936874,0.04839693,154.87,154.83,7.0424223]
[1752084937275,0.04839693,154.87,154.85,6.4568]
[1752084937977,0.04839693,154.87,154.84,6.4571]
[1752084938373,0.04839693,154.87,154.83,7.0424223]
[1752084938570,0.04839693,154.87,154.84,6.4572]
[1752084938774,0.04839693,154.87,154.83,0.04614169]
[1752084939173,0.04839693,154.87,154.83,6.50354169]
[1752084939477,0.04839693,154.87,154.83,0.04614169]
[1752084939674,6.50459693,154.87,154.83,6.50344169]
[1752084939875,0.04839693,154.87,154.83,6.50344169]
[1752084940079,0.04839693,154.87,154.83,0.04614169]
[1752084940582,0.04839693,154.87,154.84,6.99628061]
[1752084940784,0.04839693,154.87,154.83,7.0424223]
[1752084941074,0.04839693,154.87,154.86,6.4564]
[1752084941475,6.4538,154.93,154.85,6.99628061]
[1752084941678,6.4538,154.93,154.87,6.99628061]
[1752084941883,2.2703,154.95,154.87,6.99628061]
[1752084942178,7.8912526,154.94,154.87,6.99628061]
[1752084942373,2.2703,154.95,154.87,6.99628061]
[1752084942572,14.34534221,154.94,154.87,6.99628061]
[1752084942774,6.4532,154.94,154.87,6.99628061]
[1752084943176,8.7232,154.95,154.87,6.99628061]
[1752084943483,7.89385881,154.94,154.89,6.99628061]
[1752084943683,2.2785,154.96,154.89,7.03724847]
[1752084944081,2.2785,154.96,154.89,0.04096786]
[1752084944275,2.2785,154.96,154.9,6.99628061]
[1752084944681,6.99628061,154.98,154.89,0.04096786]
[1752084944883,7.92921575,154.97,154.89,7.03724847]
[1752084945078,7.92921575,154.96,154.89,6.99628061]
[1752084945378,6.99628061,154.94,154.85,258.39628061]
[1752084945586,7.93110295,154.93,154.84,6.99628061]
[1752084945779,7.93110295,154.92,154.84,6.99628061]
[1752084945981,6.455,154.9,154.86,6.4561]
[1752084946287,6.455,154.9,154.86,6.49822169]
[1752084946482,2.2025,154.93,154.87,6.456]
[1752084946683,7.93324749,154.92,154.87,6.456]
[1752084946883,2.2025,154.93,154.87,6.456]
[1752084947181,7.93324749,154.92,154.87,6.456]
[1752084947381,6.4547,154.91,154.87,6.456]
[1752084947884,6.4548,154.9,154.87,6.456]
[1752084948084,2.2025,154.93,154.88,6.4555]
[1752084948283,7.93799158,154.92,154.88,6.4555]
[1752084948581,9.02033576,154.96,154.86,7.0384023]
[1752084948780,7.93799158,154.95,154.88,6.99628061]
[1752084949083,7.93799158,154.94,154.88,6.99628061]
[1752084949283,7.93799158,154.93,154.9,6.49666347]
[1752084949484,18.21631637,154.97,154.9,6.49666347]
[1752084949684,6.4533,154.94,154.9,6.49666347]
[1752084950278,7.93132007,154.93,154.9,6.49666347]
[1752084950481,18.23043359,154.97,154.9,6.49666347]
[1752084950682,6.4534,154.94,154.91,6.4542]
[1752084950878,7.93132007,154.93,154.9,0.04216347]
[1752084951075,6.4534,154.94,154.9,0.04216347]
[1752084951285,7.93275631,154.93,154.9,6.49666347]
[1752084951487,6.4534,154.94,154.9,6.49666347]
[1752084951681,7.9327594,154.93,154.9,0.04216347]
[1752084951888,7.93298379,154.92,154.9,0.04216347]
[1752084952088,6.99628061,154.95,154.9,0.04216347]